[Event "Titled Tuesday Blitz April 18 Early 2023"]
[White "Aradhya, Garg"]
[Black "b_6"]
[WhiteFideId "25006746"]
[WhiteElo "2263"]
[BlackElo "2489"]
[Result "1-0"]
[Round "06"]
[TimeControl "180+2"]
[Date "2023.04.18"]
[WhiteClock "0:01:04"]
[BlackClock "0:00:14"]

1. d4 {[%clk 0:03:00]}  Nf6 {[%clk 0:02:59]} 2. c4 {[%clk 0:03:00]}  g6 {[%clk 0:03:00]} 3. g3 {[%clk 0:03:00]}  Bg7 {[%clk 0:03:00]} 4. Bg2 {[%clk 0:03:01]}  O-O {[%clk 0:03:00]} 5. Nc3 {[%clk 0:03:01]}  Nc6 {[%clk 0:03:00]} 6. Bf4 {[%clk 0:02:58]}  d6 {[%clk 0:02:56]} 7. Nf3 {[%clk 0:02:58]}  Nh5 {[%clk 0:02:50]} 8. Be3 {[%clk 0:02:57]}  e5 {[%clk 0:02:49]} 9. O-O {[%clk 0:02:56]}  Bd7 {[%clk 0:02:36]} 10. Qd2 {[%clk 0:02:42]}  exd4 {[%clk 0:02:23]} 11. Nxd4 {[%clk 0:02:41]}  Nxd4 {[%clk 0:02:23]} 12. Bxd4 {[%clk 0:02:41]}  Bc6 {[%clk 0:02:24]} 13. Nd5 {[%clk 0:02:38]}  Nf6 {[%clk 0:02:18]} 14. Rac1 {[%clk 0:02:35]}  Re8 {[%clk 0:02:15]} 15. e3 {[%clk 0:02:34]}  Nd7 {[%clk 0:01:36]} 16. b4 {[%clk 0:02:27]}  b6 {[%clk 0:01:30]} 17. Bxg7 {[%clk 0:02:02]}  Kxg7 {[%clk 0:01:30]} 18. Qd4+ {[%clk 0:02:03]}  Kg8 {[%clk 0:01:24]} 19. h4 {[%clk 0:01:59]}  a5 {[%clk 0:01:22]} 20. a3 {[%clk 0:01:58]}  axb4 {[%clk 0:01:14]} 21. axb4 {[%clk 0:01:59]}  Ra7 {[%clk 0:01:06]} 22. h5 {[%clk 0:01:51]}  Bxd5 {[%clk 0:01:05]} 23. cxd5 {[%clk 0:01:49]}  Qf6 {[%clk 0:01:02]} 24. hxg6 {[%clk 0:01:47]}  hxg6 {[%clk 0:01:01]} 25. Qxf6 {[%clk 0:01:42]}  Nxf6 {[%clk 0:01:00]} 26. Rc4 {[%clk 0:01:43]}  Re5 {[%clk 0:00:58]} 27. Rfc1 {[%clk 0:01:40]}  Nxd5 {[%clk 0:00:57]} 28. f4 {[%clk 0:01:38]}  Nxe3 {[%clk 0:00:46]} 29. fxe5 {[%clk 0:01:38]}  Nxc4 {[%clk 0:00:46]} 30. Rxc4 {[%clk 0:01:39]}  dxe5 {[%clk 0:00:47]} 31. Rc6 {[%clk 0:01:31]}  Ra4 {[%clk 0:00:38]} 32. b5 {[%clk 0:01:29]}  Rb4 {[%clk 0:00:34]} 33. Bf1 {[%clk 0:01:29]}  Rb3 {[%clk 0:00:29]} 34. Kg2 {[%clk 0:01:30]}  f5 {[%clk 0:00:29]} 35. Rxg6+ {[%clk 0:01:29]}  Kf7 {[%clk 0:00:29]} 36. Rc6 {[%clk 0:01:29]}  Rb2+ {[%clk 0:00:27]} 37. Kg1 {[%clk 0:01:28]}  f4 {[%clk 0:00:26]} 38. Rxc7+ {[%clk 0:01:28]}  Kf6 {[%clk 0:00:26]} 39. Rc6+ {[%clk 0:01:27]}  Kg5 {[%clk 0:00:24]} 40. gxf4+ {[%clk 0:01:28]}  exf4 {[%clk 0:00:23]} 41. Rxb6 {[%clk 0:01:28]}  f3 {[%clk 0:00:22]} 42. Rb8 {[%clk 0:01:28]}  Kf4 {[%clk 0:00:22]} 43. Rf8+ {[%clk 0:01:28]}  Kg3 {[%clk 0:00:22]} 44. Rg8+ {[%clk 0:01:28]}  Kf4 {[%clk 0:00:22]} 45. Rg7 {[%clk 0:01:23]}  Ke3 {[%clk 0:00:21]} 46. Re7+ {[%clk 0:01:23]}  Kf4 {[%clk 0:00:21]} 47. Re6 {[%clk 0:01:23]}  Kg3 {[%clk 0:00:21]} 48. Rg6+ {[%clk 0:01:22]}  Kf4 {[%clk 0:00:20]} 49. b6 {[%clk 0:01:23]}  Ke3 {[%clk 0:00:19]} 50. Re6+ {[%clk 0:01:20]}  Kf4 {[%clk 0:00:19]} 51. Ba6 {[%clk 0:01:09]}  Ra2 {[%clk 0:00:17]} 52. b7 {[%clk 0:01:05]}  Kg3 {[%clk 0:00:14]} 53. b8=Q+ {[%clk 0:01:04]} 1-0


[Site "https://www.chess.com"]

[Event "Titled Tuesday Blitz April 18 Early 2023"]
[White "Samunenkov, Ihor"]
[Black "Arat, Ufuk Sezen"]
[WhiteFideId "14187086"]
[BlackFideId "6309089"]
[WhiteElo "2457"]
[BlackElo "2289"]
[Result "0-1"]
[Round "06"]
[TimeControl "180+2"]
[Date "2023.04.18"]
[WhiteClock "0:00:10"]
[BlackClock "0:00:45"]

1. e4 {[%clk 0:03:00]}  c5 {[%clk 0:03:00]} 2. Nf3 {[%clk 0:03:00]}  e6 {[%clk 0:03:00]} 3. d4 {[%clk 0:03:00]}  cxd4 {[%clk 0:03:01]} 4. Nxd4 {[%clk 0:03:01]}  Nc6 {[%clk 0:03:02]} 5. Nc3 {[%clk 0:03:01]}  Qc7 {[%clk 0:03:02]} 6. Qd3 {[%clk 0:02:59]}  a6 {[%clk 0:03:02]} 7. Nxc6 {[%clk 0:02:58]}  bxc6 {[%clk 0:03:03]} 8. Qg3 {[%clk 0:02:59]}  Qxg3 {[%clk 0:03:03]} 9. hxg3 {[%clk 0:03:00]}  d5 {[%clk 0:03:03]} 10. g4 {[%clk 0:03:00]}  Bb4 {[%clk 0:03:01]} 11. Bd2 {[%clk 0:02:55]}  Nf6 {[%clk 0:02:48]} 12. exd5 {[%clk 0:02:18]}  exd5 {[%clk 0:02:48]} 13. g5 {[%clk 0:02:18]}  Nd7 {[%clk 0:02:45]} 14. O-O-O {[%clk 0:02:16]}  a5 {[%clk 0:02:45]} 15. a3 {[%clk 0:02:06]}  Bd6 {[%clk 0:02:39]} 16. Bd3 {[%clk 0:01:49]}  Ne5 {[%clk 0:02:35]} 17. Rde1 {[%clk 0:01:41]}  Be6 {[%clk 0:02:30]} 18. Bxh7 {[%clk 0:01:29]}  Nc4 {[%clk 0:02:30]} 19. g6 {[%clk 0:01:18]}  Nxd2 {[%clk 0:02:20]} 20. Kxd2 {[%clk 0:01:19]}  Kf8 {[%clk 0:02:13]} 21. gxf7 {[%clk 0:01:19]}  Bf4+ {[%clk 0:02:09]} 22. Kd1 {[%clk 0:01:17]}  Kxf7 {[%clk 0:02:09]} 23. Bd3 {[%clk 0:01:13]}  Rab8 {[%clk 0:02:07]} 24. b3 {[%clk 0:01:13]}  Bd6 {[%clk 0:02:05]} 25. Ne2 {[%clk 0:00:46]}  Bxa3 {[%clk 0:02:03]} 26. Nf4 {[%clk 0:00:45]}  Rxh1 {[%clk 0:01:59]} 27. Rxh1 {[%clk 0:00:45]}  Bd7 {[%clk 0:01:59]} 28. Rh7 {[%clk 0:00:34]}  Bb2 {[%clk 0:01:46]} 29. f3 {[%clk 0:00:28]}  Ra8 {[%clk 0:01:42]} 30. Kd2 {[%clk 0:00:24]}  a4 {[%clk 0:01:40]} 31. bxa4 {[%clk 0:00:25]}  Rxa4 {[%clk 0:01:41]} 32. Ne2 {[%clk 0:00:21]}  Be5 {[%clk 0:01:38]} 33. g3 {[%clk 0:00:19]}  Be6 {[%clk 0:01:31]} 34. f4 {[%clk 0:00:19]}  Bf6 {[%clk 0:01:29]} 35. f5 {[%clk 0:00:15]}  Bd7 {[%clk 0:01:20]} 36. Ke1 {[%clk 0:00:13]}  Kg8 {[%clk 0:01:16]} 37. Rh2 {[%clk 0:00:11]}  c5 {[%clk 0:01:11]} 38. Nf4 {[%clk 0:00:11]}  c4 {[%clk 0:00:53]} 39. Be2 {[%clk 0:00:11]}  Bxf5 {[%clk 0:00:50]} 40. Nxd5 {[%clk 0:00:11]}  Ra1+ {[%clk 0:00:47]} 41. Kd2 {[%clk 0:00:10]}  c3+ {[%clk 0:00:45]} 42. Nxc3 {[%clk 0:00:10]}  Bg5# {[%clk 0:00:45]} 0-1


[Site "https://www.chess.com"]

[Event "Titled Tuesday Blitz April 18 Early 2023"]
[White "Shevtchenko, Olesya"]
[Black "Svane, Rasmus"]
[WhiteFideId "24131890"]
[BlackFideId "4657101"]
[WhiteElo "2003"]
[BlackElo "2597"]
[Result "0-1"]
[Round "06"]
[TimeControl "180+2"]
[Date "2023.04.18"]
[WhiteClock "0:00:33"]
[BlackClock "0:02:00"]

1. e4 {[%clk 0:02:57]}  c6 {[%clk 0:03:00]} 2. Nc3 {[%clk 0:02:56]}  d5 {[%clk 0:03:01]} 3. Qf3 {[%clk 0:02:57]}  dxe4 {[%clk 0:02:59]} 4. Nxe4 {[%clk 0:02:58]}  Nf6 {[%clk 0:02:59]} 5. Bc4 {[%clk 0:02:58]}  Nbd7 {[%clk 0:03:00]} 6. Nxf6+ {[%clk 0:02:58]}  exf6 {[%clk 0:02:59]} 7. d4 {[%clk 0:02:58]}  Bd6 {[%clk 0:02:59]} 8. Ne2 {[%clk 0:02:55]}  O-O {[%clk 0:03:00]} 9. Be3 {[%clk 0:02:54]}  Nb6 {[%clk 0:02:59]} 10. Bb3 {[%clk 0:02:45]}  a5 {[%clk 0:02:56]} 11. a4 {[%clk 0:02:43]}  Nd5 {[%clk 0:02:56]} 12. c3 {[%clk 0:02:40]}  Re8 {[%clk 0:02:51]} 13. Bxd5 {[%clk 0:02:37]}  cxd5 {[%clk 0:02:52]} 14. Qxd5 {[%clk 0:02:32]}  Rxe3 {[%clk 0:02:52]} 15. Kd2 {[%clk 0:02:00]}  Re8 {[%clk 0:02:30]} 16. Rae1 {[%clk 0:01:56]}  Qb6 {[%clk 0:02:30]} 17. Kc1 {[%clk 0:01:52]}  Be6 {[%clk 0:02:28]} 18. Qf3 {[%clk 0:01:35]}  Qb3 {[%clk 0:02:25]} 19. Nf4 {[%clk 0:01:30]}  Bxf4+ {[%clk 0:02:23]} 20. Qxf4 {[%clk 0:01:31]}  Qxa4 {[%clk 0:02:22]} 21. h4 {[%clk 0:01:24]}  Bb3 {[%clk 0:02:21]} 22. Kd2 {[%clk 0:01:18]}  Qa2 {[%clk 0:02:15]} 23. Rb1 {[%clk 0:01:18]}  Bc4 {[%clk 0:02:15]} 24. Qf3 {[%clk 0:00:45]}  a4 {[%clk 0:02:09]} 25. Kc1 {[%clk 0:00:34]}  a3 {[%clk 0:02:08]} 26. bxa3 {[%clk 0:00:33]}  Re2 {[%clk 0:02:00]} 0-1


[Site "https://www.chess.com"]

[Event "Titled Tuesday Blitz April 18 Early 2023"]
[White "Ibadov, Dashgyn"]
[Black "Grigoriants, Sergey"]
[WhiteFideId "24107514"]
[BlackFideId "4130804"]
[WhiteElo "2208"]
[BlackElo "2502"]
[Result "1-0"]
[Round "06"]
[TimeControl "180+2"]
[Date "2023.04.18"]
[WhiteClock "0:00:03"]
[BlackClock "0:00:01"]

1. e4 {[%clk 0:03:00]}  c5 {[%clk 0:02:59]} 2. Nf3 {[%clk 0:02:59]}  Nc6 {[%clk 0:03:00]} 3. Bb5 {[%clk 0:02:59]}  e6 {[%clk 0:02:57]} 4. O-O {[%clk 0:02:58]}  Nge7 {[%clk 0:02:57]} 5. d4 {[%clk 0:02:59]}  cxd4 {[%clk 0:02:54]} 6. Nxd4 {[%clk 0:03:00]}  Ng6 {[%clk 0:02:51]} 7. Be2 {[%clk 0:02:55]}  Be7 {[%clk 0:02:42]} 8. c4 {[%clk 0:02:55]}  O-O {[%clk 0:02:38]} 9. Nc3 {[%clk 0:02:54]}  Qc7 {[%clk 0:02:22]} 10. Be3 {[%clk 0:02:46]}  b6 {[%clk 0:02:22]} 11. Qd2 {[%clk 0:02:39]}  Bb7 {[%clk 0:02:21]} 12. Rad1 {[%clk 0:02:36]}  Nxd4 {[%clk 0:02:17]} 13. Qxd4 {[%clk 0:02:34]}  Bc6 {[%clk 0:02:13]} 14. b3 {[%clk 0:02:31]}  f5 {[%clk 0:02:06]} 15. exf5 {[%clk 0:02:11]}  Rxf5 {[%clk 0:02:05]} 16. Bd3 {[%clk 0:01:24]}  Bf6 {[%clk 0:01:49]} 17. Qg4 {[%clk 0:01:22]}  Bxc3 {[%clk 0:01:46]} 18. Bxf5 {[%clk 0:01:21]}  exf5 {[%clk 0:01:46]} 19. Qxf5 {[%clk 0:01:22]}  Rf8 {[%clk 0:01:29]} 20. Qg4 {[%clk 0:01:22]}  Be5 {[%clk 0:01:20]} 21. h3 {[%clk 0:01:20]}  Nf4 {[%clk 0:01:11]} 22. f3 {[%clk 0:01:14]}  Rf6 {[%clk 0:00:44]} 23. Bxf4 {[%clk 0:00:59]}  Rxf4 {[%clk 0:00:45]} 24. Qg5 {[%clk 0:00:56]}  Bf6 {[%clk 0:00:34]} 25. Qh5 {[%clk 0:00:48]}  g6 {[%clk 0:00:17]} 26. Qh6 {[%clk 0:00:47]}  Rh4 {[%clk 0:00:07]} 27. Qe3 {[%clk 0:00:47]}  Qe5 {[%clk 0:00:08]} 28. Qd3 {[%clk 0:00:31]}  Qc5+ {[%clk 0:00:07]} 29. Kh1 {[%clk 0:00:29]}  Rd4 {[%clk 0:00:08]} 30. Qe2 {[%clk 0:00:28]}  Qe5 {[%clk 0:00:07]} 31. Qf2 {[%clk 0:00:25]}  a5 {[%clk 0:00:06]} 32. Rde1 {[%clk 0:00:24]}  Qf4 {[%clk 0:00:05]} 33. Re8+ {[%clk 0:00:24]}  Kf7 {[%clk 0:00:05]} 34. Rfe1 {[%clk 0:00:23]}  Rd2 {[%clk 0:00:05]} 35. Qxb6 {[%clk 0:00:23]}  Qg3 {[%clk 0:00:04]} 36. R8e2 {[%clk 0:00:09]}  Rd3 {[%clk 0:00:03]} 37. Re3 {[%clk 0:00:04]}  Bd4 {[%clk 0:00:01]} 38. Rxd3 {[%clk 0:00:03]} 1-0


[Site "https://www.chess.com"]

[Event "Titled Tuesday Blitz April 18 Early 2023"]
[White "Pajeken, Jakob Leon"]
[Black "Bacrot, Etienne"]
[WhiteFideId "12942839"]
[BlackFideId "605506"]
[WhiteElo "2414"]
[BlackElo "2663"]
[Result "1-0"]
[Round "06"]
[TimeControl "180+2"]
[Date "2023.04.18"]
[WhiteClock "0:01:58"]
[BlackClock "0:00:50"]

1. d4 {[%clk 0:03:00]}  Nf6 {[%clk 0:02:59]} 2. Nf3 {[%clk 0:03:00]}  c5 {[%clk 0:02:59]} 3. d5 {[%clk 0:02:59]}  b5 {[%clk 0:02:58]} 4. Bg5 {[%clk 0:02:59]}  Qb6 {[%clk 0:02:57]} 5. a4 {[%clk 0:02:59]}  b4 {[%clk 0:02:55]} 6. a5 {[%clk 0:02:58]}  Qd6 {[%clk 0:02:51]} 7. Bxf6 {[%clk 0:02:55]}  Qxf6 {[%clk 0:02:50]} 8. Ra2 {[%clk 0:02:53]}  d6 {[%clk 0:02:43]} 9. Nbd2 {[%clk 0:02:51]}  g6 {[%clk 0:02:39]} 10. e4 {[%clk 0:02:49]}  Bg7 {[%clk 0:02:36]} 11. Bc4 {[%clk 0:02:49]}  O-O {[%clk 0:02:36]} 12. h3 {[%clk 0:02:48]}  Nd7 {[%clk 0:02:34]} 13. O-O {[%clk 0:02:47]}  Ne5 {[%clk 0:02:34]} 14. Nxe5 {[%clk 0:02:46]}  Qxe5 {[%clk 0:02:34]} 15. Qe2 {[%clk 0:02:44]}  Bd7 {[%clk 0:02:19]} 16. Rd1 {[%clk 0:02:32]}  f5 {[%clk 0:02:17]} 17. Re1 {[%clk 0:02:20]}  fxe4 {[%clk 0:02:10]} 18. Qxe4 {[%clk 0:02:21]}  Qxe4 {[%clk 0:02:07]} 19. Nxe4 {[%clk 0:02:16]}  Rf4 {[%clk 0:02:03]} 20. g3 {[%clk 0:02:15]}  Rf3 {[%clk 0:02:00]} 21. Ng5 {[%clk 0:02:12]}  Rf5 {[%clk 0:01:28]} 22. Rxe7 {[%clk 0:02:10]}  Rxg5 {[%clk 0:01:27]} 23. Rxd7 {[%clk 0:02:10]}  Rf8 {[%clk 0:01:24]} 24. c3 {[%clk 0:02:05]}  Re5 {[%clk 0:01:07]} 25. cxb4 {[%clk 0:02:00]}  cxb4 {[%clk 0:01:00]} 26. b3 {[%clk 0:02:00]}  Re1+ {[%clk 0:00:50]} 27. Kg2 {[%clk 0:02:00]}  Be5 {[%clk 0:00:50]} 28. Rxa7 {[%clk 0:01:58]} 1-0


[Site "https://www.chess.com"]

[Event "Titled Tuesday Blitz April 18 Early 2023"]
[White "Costachi, Mihnea"]
[Black "Moksh Amit Doshi"]
[WhiteFideId "1217518"]
[BlackFideId "25064967"]
[WhiteElo "2456"]
[BlackElo "2297"]
[Result "1-0"]
[Round "06"]
[TimeControl "180+2"]
[Date "2023.04.18"]
[WhiteClock "0:01:01"]
[BlackClock "0:00:36"]

1. Nc3 {[%clk 0:03:00]}  e5 {[%clk 0:02:52]} 2. e4 {[%clk 0:03:00]}  Nf6 {[%clk 0:02:51]} 3. Bc4 {[%clk 0:03:01]}  Nc6 {[%clk 0:02:50]} 4. d3 {[%clk 0:03:00]}  Bc5 {[%clk 0:02:49]} 5. f4 {[%clk 0:03:00]}  d6 {[%clk 0:02:37]} 6. Nf3 {[%clk 0:03:00]}  O-O {[%clk 0:02:34]} 7. Na4 {[%clk 0:02:53]}  Bg4 {[%clk 0:02:07]} 8. Nxc5 {[%clk 0:02:52]}  dxc5 {[%clk 0:02:08]} 9. O-O {[%clk 0:02:47]}  Nd4 {[%clk 0:02:05]} 10. fxe5 {[%clk 0:02:45]}  Nd7 {[%clk 0:02:03]} 11. Bf4 {[%clk 0:02:42]}  Qe7 {[%clk 0:01:58]} 12. Kh1 {[%clk 0:02:26]}  Nxe5 {[%clk 0:01:47]} 13. Bxe5 {[%clk 0:02:23]}  Bxf3 {[%clk 0:01:46]} 14. gxf3 {[%clk 0:02:21]}  Qxe5 {[%clk 0:01:45]} 15. f4 {[%clk 0:02:21]}  Qd6 {[%clk 0:01:38]} 16. c3 {[%clk 0:02:19]}  Ne6 {[%clk 0:01:38]} 17. f5 {[%clk 0:02:18]}  Ng5 {[%clk 0:01:36]} 18. Qg4 {[%clk 0:02:18]}  h6 {[%clk 0:01:35]} 19. f6 {[%clk 0:02:07]}  b5 {[%clk 0:01:15]} 20. h4 {[%clk 0:01:57]}  bxc4 {[%clk 0:01:13]} 21. hxg5 {[%clk 0:01:57]}  cxd3 {[%clk 0:01:03]} 22. fxg7 {[%clk 0:01:47]}  Rfe8 {[%clk 0:01:02]} 23. Rf6 {[%clk 0:01:46]}  Qe5 {[%clk 0:00:59]} 24. Raf1 {[%clk 0:01:29]}  d2 {[%clk 0:00:47]} 25. gxh6 {[%clk 0:01:14]}  Qxe4+ {[%clk 0:00:43]} 26. Qxe4 {[%clk 0:01:12]}  Rxe4 {[%clk 0:00:44]} 27. Rxf7 {[%clk 0:01:05]}  Re1 {[%clk 0:00:40]} 28. Rf8+ {[%clk 0:01:05]}  Kh7 {[%clk 0:00:40]} 29. g8=Q+ {[%clk 0:01:05]}  Kxh6 {[%clk 0:00:36]} 30. Rf6+ {[%clk 0:01:01]} 1-0


[Site "https://www.chess.com"]

[Event "Titled Tuesday Blitz April 18 Early 2023"]
[White "benny_aizenberg"]
[Black "Mekhitarian, Krikor Sevag"]
[BlackFideId "2107660"]
[WhiteElo "2559"]
[BlackElo "2604"]
[Result "1/2-1/2"]
[Round "06"]
[TimeControl "180+2"]
[Date "2023.04.18"]
[WhiteClock "0:00:05"]
[BlackClock "0:00:02"]

1. c4 {[%clk 0:03:00]}  c5 {[%clk 0:02:58]} 2. g3 {[%clk 0:03:00]}  Nc6 {[%clk 0:02:59]} 3. Bg2 {[%clk 0:03:00]}  g6 {[%clk 0:02:59]} 4. Nc3 {[%clk 0:03:00]}  Bg7 {[%clk 0:03:00]} 5. e3 {[%clk 0:03:00]}  e5 {[%clk 0:02:55]} 6. Nge2 {[%clk 0:02:58]}  d6 {[%clk 0:02:52]} 7. O-O {[%clk 0:02:58]}  h5 {[%clk 0:02:53]} 8. a3 {[%clk 0:02:55]}  h4 {[%clk 0:02:45]} 9. b4 {[%clk 0:02:54]}  Nh6 {[%clk 0:02:44]} 10. bxc5 {[%clk 0:02:17]}  dxc5 {[%clk 0:02:43]} 11. Ne4 {[%clk 0:02:18]}  Qe7 {[%clk 0:02:38]} 12. Bb2 {[%clk 0:02:12]}  Ng4 {[%clk 0:02:18]} 13. h3 {[%clk 0:01:57]}  Nh6 {[%clk 0:02:17]} 14. g4 {[%clk 0:01:56]}  f5 {[%clk 0:02:18]} 15. gxf5 {[%clk 0:01:54]}  Bxf5 {[%clk 0:02:06]} 16. N2c3 {[%clk 0:01:51]}  Rd8 {[%clk 0:01:53]} 17. Nd5 {[%clk 0:01:51]}  Qf7 {[%clk 0:01:32]} 18. Nxc5 {[%clk 0:01:42]}  O-O {[%clk 0:01:25]} 19. Nb4 {[%clk 0:01:27]}  Kh7 {[%clk 0:01:20]} 20. Nxc6 {[%clk 0:00:52]}  bxc6 {[%clk 0:01:20]} 21. Qe2 {[%clk 0:00:48]}  Qe7 {[%clk 0:01:08]} 22. e4 {[%clk 0:00:39]}  Bc8 {[%clk 0:01:05]} 23. Nd3 {[%clk 0:00:36]}  Nf7 {[%clk 0:01:05]} 24. Nb4 {[%clk 0:00:35]}  Qd6 {[%clk 0:00:50]} 25. Rad1 {[%clk 0:00:32]}  Ng5 {[%clk 0:00:49]} 26. Kh2 {[%clk 0:00:30]}  Ne6 {[%clk 0:00:50]} 27. Qg4 {[%clk 0:00:19]}  Bf6 {[%clk 0:00:45]} 28. Nc2 {[%clk 0:00:09]}  Nf4 {[%clk 0:00:45]} 29. Qf3 {[%clk 0:00:09]}  Qe6 {[%clk 0:00:38]} 30. Ne3 {[%clk 0:00:08]}  Rd3 {[%clk 0:00:35]} 31. Rfe1 {[%clk 0:00:06]}  Rfd8 {[%clk 0:00:34]} 32. Bf1 {[%clk 0:00:07]}  Rxd2 {[%clk 0:00:27]} 33. Rxd2 {[%clk 0:00:07]}  Rxd2 {[%clk 0:00:28]} 34. Bc1 {[%clk 0:00:08]}  Rd8 {[%clk 0:00:23]} 35. Ng4 {[%clk 0:00:08]}  Bg7 {[%clk 0:00:22]} 36. Bxf4 {[%clk 0:00:08]}  exf4 {[%clk 0:00:23]} 37. Qxf4 {[%clk 0:00:08]}  Rf8 {[%clk 0:00:23]} 38. Qe3 {[%clk 0:00:07]}  Qe7 {[%clk 0:00:20]} 39. Be2 {[%clk 0:00:06]}  c5 {[%clk 0:00:18]} 40. f4 {[%clk 0:00:05]}  Bxg4 {[%clk 0:00:18]} 41. Bxg4 {[%clk 0:00:05]}  Rxf4 {[%clk 0:00:19]} 42. e5 {[%clk 0:00:05]}  Rxc4 {[%clk 0:00:14]} 43. Kg2 {[%clk 0:00:05]}  Qb7+ {[%clk 0:00:13]} 44. Bf3 {[%clk 0:00:05]}  Qb2+ {[%clk 0:00:12]} 45. Re2 {[%clk 0:00:05]}  Rc2 {[%clk 0:00:12]} 46. e6 {[%clk 0:00:05]}  Rxe2+ {[%clk 0:00:12]} 47. Qxe2 {[%clk 0:00:05]}  Qxe2+ {[%clk 0:00:11]} 48. Bxe2 {[%clk 0:00:05]}  Bf6 {[%clk 0:00:11]} 49. Kf3 {[%clk 0:00:05]}  Be7 {[%clk 0:00:11]} 50. Ke4 {[%clk 0:00:05]}  Kg7 {[%clk 0:00:11]} 51. Kd5 {[%clk 0:00:04]}  Kf6 {[%clk 0:00:11]} 52. Bc4 {[%clk 0:00:02]}  g5 {[%clk 0:00:11]} 53. Kc6 {[%clk 0:00:02]}  a5 {[%clk 0:00:09]} 54. Kd7 {[%clk 0:00:02]}  Bf8 {[%clk 0:00:06]} 55. Ke8 {[%clk 0:00:02]}  Bd6 {[%clk 0:00:06]} 56. Kd7 {[%clk 0:00:02]}  Be7 {[%clk 0:00:06]} 57. Ke8 {[%clk 0:00:03]}  Bd6 {[%clk 0:00:01]} 58. Kd7 {[%clk 0:00:03]}  Be7 {[%clk 0:00:02]} 59. a4 {[%clk 0:00:03]}  Bf8 {[%clk 0:00:02]} 60. Ke8 {[%clk 0:00:03]}  Be7 {[%clk 0:00:03]} 61. Kd7 {[%clk 0:00:04]}  Bf8 {[%clk 0:00:03]} 62. Bd5 {[%clk 0:00:05]}  Be7 {[%clk 0:00:02]} 63. Bc4 {[%clk 0:00:05]} 1/2-1/2


[Site "https://www.chess.com"]

[Event "Titled Tuesday Blitz April 18 Early 2023"]
[White "Hambleton, Aman"]
[Black "Bruedigam, Martin"]
[WhiteFideId "2606577"]
[BlackFideId "24608033"]
[WhiteElo "2511"]
[BlackElo "2331"]
[Result "1-0"]
[Round "06"]
[TimeControl "180+2"]
[Date "2023.04.18"]
[WhiteClock "0:00:12"]
[BlackClock "0:00:08"]

1. d4 {[%clk 0:03:00]}  d5 {[%clk 0:02:55]} 2. Bf4 {[%clk 0:03:01]}  Nf6 {[%clk 0:02:49]} 3. e3 {[%clk 0:03:01]}  c5 {[%clk 0:02:50]} 4. c3 {[%clk 0:03:01]}  cxd4 {[%clk 0:02:48]} 5. exd4 {[%clk 0:03:02]}  Nc6 {[%clk 0:02:48]} 6. Bd3 {[%clk 0:03:01]}  Bg4 {[%clk 0:02:47]} 7. Qb3 {[%clk 0:03:01]}  Qc8 {[%clk 0:02:47]} 8. Nd2 {[%clk 0:03:02]}  e6 {[%clk 0:02:47]} 9. h3 {[%clk 0:03:02]}  Bh5 {[%clk 0:02:47]} 10. Ngf3 {[%clk 0:03:03]}  Bg6 {[%clk 0:02:44]} 11. Bxg6 {[%clk 0:03:02]}  hxg6 {[%clk 0:02:45]} 12. O-O {[%clk 0:03:03]}  Be7 {[%clk 0:02:44]} 13. Rfe1 {[%clk 0:03:04]}  O-O {[%clk 0:02:42]} 14. a4 {[%clk 0:03:04]}  Bd8 {[%clk 0:02:38]} 15. h4 {[%clk 0:02:52]}  Bc7 {[%clk 0:02:38]} 16. Bxc7 {[%clk 0:02:50]}  Qxc7 {[%clk 0:02:39]} 17. g3 {[%clk 0:02:51]}  a6 {[%clk 0:02:36]} 18. Ne5 {[%clk 0:02:24]}  Nxe5 {[%clk 0:02:17]} 19. Rxe5 {[%clk 0:02:15]}  Rab8 {[%clk 0:02:12]} 20. a5 {[%clk 0:02:14]}  b6 {[%clk 0:01:53]} 21. axb6 {[%clk 0:02:14]}  Rxb6 {[%clk 0:01:54]} 22. Qc2 {[%clk 0:01:41]}  Rfb8 {[%clk 0:01:53]} 23. Ra2 {[%clk 0:01:41]}  Nd7 {[%clk 0:01:41]} 24. Re2 {[%clk 0:01:38]}  e5 {[%clk 0:01:40]} 25. dxe5 {[%clk 0:01:13]}  Nxe5 {[%clk 0:01:41]} 26. Kg2 {[%clk 0:00:52]}  Re6 {[%clk 0:00:39]} 27. Ra4 {[%clk 0:00:32]}  Qb7 {[%clk 0:00:20]} 28. Rb4 {[%clk 0:00:32]}  Qa8 {[%clk 0:00:19]} 29. Rxb8+ {[%clk 0:00:18]}  Qxb8 {[%clk 0:00:19]} 30. Nb3 {[%clk 0:00:18]}  Qb5 {[%clk 0:00:15]} 31. Nd4 {[%clk 0:00:18]}  Qd3 {[%clk 0:00:08]} 32. Qxd3 {[%clk 0:00:11]}  Nxd3 {[%clk 0:00:07]} 33. Nxe6 {[%clk 0:00:12]}  fxe6 {[%clk 0:00:08]} 1-0


[Site "https://www.chess.com"]

[Event "Titled Tuesday Blitz April 18 Early 2023"]
[White "chessfatbear"]
[Black "Sousa, Andre Ventura"]
[BlackFideId "1917617"]
[WhiteElo "2768"]
[BlackElo "2348"]
[Result "1/2-1/2"]
[Round "06"]
[TimeControl "180+2"]
[Date "2023.04.18"]
[WhiteClock "0:00:04"]
[BlackClock "0:00:26"]

1. e4 {[%clk 0:02:53]}  e5 {[%clk 0:03:00]} 2. Nf3 {[%clk 0:02:53]}  Nc6 {[%clk 0:03:00]} 3. Bb5 {[%clk 0:02:53]}  Nf6 {[%clk 0:03:01]} 4. d3 {[%clk 0:02:51]}  Bc5 {[%clk 0:03:01]} 5. Bxc6 {[%clk 0:02:51]}  dxc6 {[%clk 0:03:00]} 6. O-O {[%clk 0:02:51]}  Nd7 {[%clk 0:02:58]} 7. Be3 {[%clk 0:02:50]}  Bd6 {[%clk 0:02:57]} 8. Nbd2 {[%clk 0:02:49]}  f6 {[%clk 0:02:51]} 9. Nh4 {[%clk 0:02:48]}  Nf8 {[%clk 0:02:51]} 10. Qh5+ {[%clk 0:02:47]}  g6 {[%clk 0:02:49]} 11. Qh6 {[%clk 0:02:45]}  Be6 {[%clk 0:02:44]} 12. Nc4 {[%clk 0:02:42]}  Qd7 {[%clk 0:02:39]} 13. f4 {[%clk 0:02:41]}  Bxc4 {[%clk 0:02:26]} 14. dxc4 {[%clk 0:02:41]}  exf4 {[%clk 0:02:27]} 15. Bxf4 {[%clk 0:02:35]}  O-O-O {[%clk 0:02:25]} 16. Bxd6 {[%clk 0:02:14]}  Qxd6 {[%clk 0:02:26]} 17. Nf3 {[%clk 0:02:13]}  Ne6 {[%clk 0:02:19]} 18. Qe3 {[%clk 0:02:10]}  Qc5 {[%clk 0:02:14]} 19. Qxc5 {[%clk 0:02:06]}  Nxc5 {[%clk 0:02:15]} 20. e5 {[%clk 0:02:07]}  f5 {[%clk 0:02:05]} 21. Ng5 {[%clk 0:02:04]}  Rd2 {[%clk 0:02:04]} 22. b4 {[%clk 0:02:04]}  Nd7 {[%clk 0:01:55]} 23. e6 {[%clk 0:02:01]}  Nf6 {[%clk 0:01:56]} 24. Rad1 {[%clk 0:01:54]}  Rxd1 {[%clk 0:01:50]} 25. Rxd1 {[%clk 0:01:53]}  Re8 {[%clk 0:01:51]} 26. Rd3 {[%clk 0:01:38]}  h6 {[%clk 0:01:46]} 27. Nf7 {[%clk 0:01:37]}  b6 {[%clk 0:01:37]} 28. e7 {[%clk 0:01:00]}  Rxe7 {[%clk 0:01:30]} 29. Rd8+ {[%clk 0:01:00]}  Kb7 {[%clk 0:01:30]} 30. Rf8 {[%clk 0:01:01]}  Ng4 {[%clk 0:01:03]} 31. g3 {[%clk 0:00:51]}  Re1+ {[%clk 0:01:01]} 32. Kg2 {[%clk 0:00:51]}  Re2+ {[%clk 0:01:01]} 33. Kg1 {[%clk 0:00:41]}  Ka6 {[%clk 0:00:54]} 34. Nd8 {[%clk 0:00:30]}  Rxc2 {[%clk 0:00:50]} 35. Ne6 {[%clk 0:00:27]}  Ne5 {[%clk 0:00:39]} 36. Rb8 {[%clk 0:00:21]}  Nf3+ {[%clk 0:00:33]} 37. Kf1 {[%clk 0:00:21]}  Nxh2+ {[%clk 0:00:29]} 38. Ke1 {[%clk 0:00:22]}  Nf3+ {[%clk 0:00:30]} 39. Kf1 {[%clk 0:00:04]}  Nh2+ {[%clk 0:00:30]} 40. Kg1 {[%clk 0:00:04]}  Nf3+ {[%clk 0:00:30]} 41. Kf1 {[%clk 0:00:04]}  Nh2+ {[%clk 0:00:26]} 1/2-1/2


[Site "https://www.chess.com"]